[Event "*** Titled Tuesday Blitz"]
[Site "Chess.com"]
[Date "2020.12.01"]
[Round "4"]
[White "Witik"]
[Black "PelinGorki"]
[Result "0-1"]
[WhiteElo "2606"]
[BlackElo "2421"]
[TimeControl "180+1"]
[EndTime "10:39:16 PST"]
[Termination "PelinGorki won by resignation"]

1. e4 {[%clk 0:03:00.9]} 1... d6 {[%clk 0:02:59.9]} 2. d4 {[%clk 0:03:00.1]}
2... Nf6 {[%clk 0:03:00.5]} 3. Nc3 {[%clk 0:02:59.8]} 3... c6 {[%clk 0:03:01.1]}
4. h3 {[%clk 0:02:57.9]} 4... g6 {[%clk 0:02:59]} 5. g4 {[%clk 0:02:57.5]} 5...
Bg7 {[%clk 0:02:59.1]} 6. Nge2 {[%clk 0:02:57.2]} 6... b5 {[%clk 0:02:59.3]} 7.
Ng3 {[%clk 0:02:54.1]} 7... b4 {[%clk 0:02:58.3]} 8. Nce2 {[%clk 0:02:53.2]}
8... Bb7 {[%clk 0:02:58.3]} 9. g5 {[%clk 0:02:44.7]} 9... Nfd7 {[%clk
0:02:57.7]} 10. h4 {[%clk 0:02:44.8]} 10... a5 {[%clk 0:02:24.9]} 11. h5 {[%clk
0:02:43.7]} 11... Na6 {[%clk 0:02:20]} 12. h6 {[%clk 0:02:37.7]} 12... Bf8
{[%clk 0:02:20.2]} 13. f4 {[%clk 0:02:34.7]} 13... Qc7 {[%clk 0:02:19.8]} 14.
Bh3 {[%clk 0:02:32.8]} 14... e5 {[%clk 0:01:57.9]} 15. O-O {[%clk 0:02:24.6]}
15... exd4 {[%clk 0:01:45.9]} 16. Qxd4 {[%clk 0:02:12.3]} 16... Rg8 {[%clk
0:01:45.8]} 17. Be3 {[%clk 0:02:04.7]} 17... c5 {[%clk 0:01:35.7]} 18. Qd2
{[%clk 0:01:52.4]} 18... O-O-O {[%clk 0:01:34.2]} 19. a3 {[%clk 0:01:48.6]}
19... Kb8 {[%clk 0:01:33.2]} 20. axb4 {[%clk 0:01:48.4]} 20... axb4 {[%clk
0:01:32.2]} 21. c3 {[%clk 0:01:29]} 21... Nb6 {[%clk 0:01:29.8]} 22. b3 {[%clk
0:01:25.7]} 22... d5 {[%clk 0:01:25]} 23. Rfd1 {[%clk 0:00:50.4]} 23... Be7
{[%clk 0:01:18.8]} 24. cxb4 {[%clk 0:00:39.6]} 24... dxe4 {[%clk 0:00:57.1]} 25.
Qb2 {[%clk 0:00:39.2]} 25... Nxb4 {[%clk 0:00:54.9]} 26. Rxd8+ {[%clk
0:00:36.2]} 26... Rxd8 {[%clk 0:00:53.9]} 27. Qa3 {[%clk 0:00:36.7]} 27... Bc6
{[%clk 0:00:52.6]} 28. Rc1 {[%clk 0:00:33]} 28... Bb5 {[%clk 0:00:26.5]} 29. Nc3
{[%clk 0:00:28.6]} 29... Bd3 {[%clk 0:00:25.2]} 30. Ncxe4 {[%clk 0:00:20.1]}
30... N6d5 {[%clk 0:00:16.2]} 31. Bxc5 {[%clk 0:00:15.4]} 31... Bxc5+ {[%clk
0:00:14.4]} 32. Nxc5 {[%clk 0:00:09.7]} 32... Qxf4 {[%clk 0:00:15.3]} 33. Kh2
{[%clk 0:00:08.4]} 33... Qd2+ {[%clk 0:00:14.8]} 34. Bg2 {[%clk 0:00:08.5]}
34... Qxg5 {[%clk 0:00:04.8]} 35. Rf1 {[%clk 0:00:04.3]} 35... Qxh6+ {[%clk
0:00:04.9]} 36. Kg1 {[%clk 0:00:04.4]} 36... Qe3+ {[%clk 0:00:05.3]} 37. Rf2
{[%clk 0:00:04.5]} 37... Qxc5 {[%clk 0:00:06.2]} 38. Qb2 {[%clk 0:00:02.5]}
38... Qc3 {[%clk 0:00:05.2]} 39. Kh2 {[%clk 0:00:02.9]} 39... Qxb2 {[%clk
0:00:05.3]} 40. Rxb2 {[%clk 0:00:03.3]} 40... Ne3 {[%clk 0:00:05.1]} 41. Rd2
{[%clk 0:00:04.2]} 41... Nxg2 {[%clk 0:00:05.3]} 42. Kxg2 {[%clk 0:00:04.8]}
42... f5 {[%clk 0:00:05.7]} 43. Kf2 {[%clk 0:00:05.1]} 43... f4 {[%clk
0:00:05.9]} 44. Ne4 {[%clk 0:00:04.6]} 44... Kc7 {[%clk 0:00:05]} 45. Nc5 {[%clk
0:00:05.2]} 45... Kc6 {[%clk 0:00:04]} 46. Nxd3 {[%clk 0:00:04.7]} 46... Rxd3
{[%clk 0:00:04.8]} 47. Rxd3 {[%clk 0:00:04.5]} 47... Nxd3+ {[%clk 0:00:05]} 48.
Kf3 {[%clk 0:00:05.4]} 48... Nc5 {[%clk 0:00:05.9]} 49. Kxf4 {[%clk 0:00:05.7]}
49... Nxb3 {[%clk 0:00:06.4]} 50. Kg5 {[%clk 0:00:06.6]} 50... h5 {[%clk
0:00:06.6]} 51. Kh6 {[%clk 0:00:07.5]} 51... h4 {[%clk 0:00:06.8]} 0-1

[Event "*** Titled Tuesday Blitz"]
[Site "Chess.com"]
[Date "2020.12.01"]
[Round "4"]
[White "Matols"]
[Black "vladimirdamjanovic"]
[Result "0-1"]
[WhiteElo "2228"]
[BlackElo "2458"]
[TimeControl "180+1"]
[EndTime "10:39:17 PST"]
[Termination "vladimirdamjanovic won on time"]

1. d4 {[%clk 0:03:00.9]} 1... Nf6 {[%clk 0:02:59.5]} 2. c4 {[%clk 0:03:00.5]}
2... c5 {[%clk 0:02:59.6]} 3. d5 {[%clk 0:03:00.3]} 3... b5 {[%clk 0:02:59.9]}
4. cxb5 {[%clk 0:03:00.4]} 4... a6 {[%clk 0:03:00.4]} 5. bxa6 {[%clk 0:03:00.3]}
5... Bxa6 {[%clk 0:03:00.7]} 6. Nc3 {[%clk 0:03:00.6]} 6... d6 {[%clk
0:03:01.2]} 7. Nf3 {[%clk 0:03:00.7]} 7... g6 {[%clk 0:03:00.4]} 8. g3 {[%clk
0:03:01]} 8... Bg7 {[%clk 0:03:00.1]} 9. Bg2 {[%clk 0:03:01.3]} 9... Nbd7 {[%clk
0:03:00.5]} 10. Rb1 {[%clk 0:02:58.6]} 10... O-O {[%clk 0:02:59.4]} 11. O-O
{[%clk 0:02:57.8]} 11... Rb8 {[%clk 0:02:55.9]} 12. b3 {[%clk 0:02:32.4]} 12...
Ng4 {[%clk 0:02:46.9]} 13. Bb2 {[%clk 0:02:30]} 13... Nge5 {[%clk 0:02:46.7]}
14. Nd2 {[%clk 0:02:11]} 14... c4 {[%clk 0:02:10.8]} 15. h3 {[%clk 0:02:00.3]}
15... cxb3 {[%clk 0:02:09.5]} 16. axb3 {[%clk 0:01:41.4]} 16... Nc5 {[%clk
0:02:08.3]} 17. Nce4 {[%clk 0:01:26.4]} 17... Nxe4 {[%clk 0:02:01.9]} 18. Bxe4
{[%clk 0:01:19.7]} 18... Qb6 {[%clk 0:01:59.1]} 19. Kh2 {[%clk 0:00:58.4]} 19...
f5 {[%clk 0:01:54.3]} 20. Bg2 {[%clk 0:00:42.4]} 20... f4 {[%clk 0:01:49.3]} 21.
gxf4 {[%clk 0:00:29.6]} 21... Rxf4 {[%clk 0:01:49.1]} 22. Ne4 {[%clk 0:00:23]}
22... Qxb3 {[%clk 0:01:40.8]} 23. Ng5 {[%clk 0:00:16.9]} 23... Qxd1 {[%clk
0:01:37.9]} 24. Rfxd1 {[%clk 0:00:16.1]} 24... Rxf2 {[%clk 0:01:35.6]} 25. Ne6
{[%clk 0:00:14.9]} 25... Bh6 {[%clk 0:01:32.8]} 26. Bxe5 {[%clk 0:00:13.4]}
26... Rxb1 {[%clk 0:01:30.3]} 27. Rxb1 {[%clk 0:00:13]} 27... dxe5 {[%clk
0:01:30.1]} 28. Rb8+ {[%clk 0:00:12.5]} 28... Kf7 {[%clk 0:01:30.5]} 29. Nd8+
{[%clk 0:00:11.5]} 29... Kf6 {[%clk 0:01:30.4]} 30. Rb6+ {[%clk 0:00:10.1]}
30... Kg5 {[%clk 0:01:25.8]} 31. Rxa6 {[%clk 0:00:10.6]} 31... Kh4 {[%clk
0:01:23.3]} 32. Ne6 {[%clk 0:00:09.9]} 32... Rxe2 {[%clk 0:01:22.2]} 33. Ra4+
{[%clk 0:00:09.2]} 33... Kh5 {[%clk 0:01:14.8]} 34. Kg3 {[%clk 0:00:09.3]} 34...
Bf4+ {[%clk 0:01:12.1]} 35. Nxf4+ {[%clk 0:00:08.6]} 35... exf4+ {[%clk
0:01:12.4]} 36. Rxf4 {[%clk 0:00:09.2]} 36... Re3+ {[%clk 0:01:11.2]} 37. Bf3+
{[%clk 0:00:08]} 37... Kh6 {[%clk 0:01:11.3]} 38. Rf7 {[%clk 0:00:07.5]} 38...
g5 {[%clk 0:01:10.6]} 39. Kg4 {[%clk 0:00:07]} 39... Kg6 {[%clk 0:01:09.2]} 40.
Rf8 {[%clk 0:00:07.2]} 40... h5+ {[%clk 0:01:08.7]} 41. Kg3 {[%clk 0:00:07]}
41... Rd3 {[%clk 0:01:02.2]} 42. Kf2 {[%clk 0:00:06.5]} 42... Kg7 {[%clk
0:01:00.3]} 43. Re8 {[%clk 0:00:06.1]} 43... Rd2+ {[%clk 0:00:58.1]} 44. Kg3
{[%clk 0:00:04.9]} 44... Kf7 {[%clk 0:00:56.6]} 45. Rh8 {[%clk 0:00:04.7]} 45...
h4+ {[%clk 0:00:49.6]} 46. Kg4 {[%clk 0:00:04.9]} 46... Rh2 {[%clk 0:00:48.5]}
47. Rh7+ {[%clk 0:00:04.4]} 47... Kf6 {[%clk 0:00:47.3]} 48. Rh6+ {[%clk
0:00:03.8]} 48... Kg7 {[%clk 0:00:47]} 49. Re6 {[%clk 0:00:03.3]} 49... Kf7
{[%clk 0:00:46.4]} 50. Be4 {[%clk 0:00:02.7]} 50... Kf8 {[%clk 0:00:41.2]} 51.
Kf5 {[%clk 0:00:02.2]} 51... Rxh3 {[%clk 0:00:37.8]} 52. Kxg5 {[%clk 0:00:02.5]}
52... Rh2 {[%clk 0:00:36.3]} 53. Rh6 {[%clk 0:00:01.9]} 53... h3 {[%clk
0:00:34.1]} 54. Kf5 {[%clk 0:00:01.8]} 54... Rf2+ {[%clk 0:00:33.7]} 55. Ke6
{[%clk 0:00:01.7]} 55... h2 {[%clk 0:00:30.8]} 56. Rh8+ {[%clk 0:00:01.3]} 56...
Kg7 {[%clk 0:00:31]} 57. Rh4 {[%clk 0:00:01.3]} 57... Rf6+ {[%clk 0:00:29.6]}
0-1

[Event "*** Titled Tuesday Blitz"]
[Site "Chess.com"]
[Date "2020.12.01"]
[Round "4"]
[White "moro182"]
[Black "Parhamov"]
[Result "0-1"]
[WhiteElo "2716"]
[BlackElo "2922"]
[TimeControl "180+1"]
[EndTime "10:39:19 PST"]
[Termination "Parhamov won on time"]

1. d4 {[%clk 0:03:00.9]} 1... Nf6 {[%clk 0:02:59]} 2. c4 {[%clk 0:03:00.8]} 2...
e6 {[%clk 0:02:58.9]} 3. Nc3 {[%clk 0:03:00.4]} 3... Bb4 {[%clk 0:02:58.2]} 4.
e3 {[%clk 0:03:00.6]} 4... O-O {[%clk 0:02:57.8]} 5. Bd3 {[%clk 0:03:00.8]} 5...
b6 {[%clk 0:02:54.2]} 6. Nf3 {[%clk 0:03:01]} 6... Bb7 {[%clk 0:02:54.4]} 7. O-O
{[%clk 0:03:01.5]} 7... c5 {[%clk 0:02:50.6]} 8. Na4 {[%clk 0:02:58.9]} 8...
cxd4 {[%clk 0:02:49.3]} 9. exd4 {[%clk 0:02:59.8]} 9... Be7 {[%clk 0:02:49.3]}
10. a3 {[%clk 0:02:58.9]} 10... d6 {[%clk 0:02:45]} 11. Bf4 {[%clk 0:02:57.4]}
11... Nbd7 {[%clk 0:02:44.7]} 12. Re1 {[%clk 0:02:56.5]} 12... Re8 {[%clk
0:02:44.9]} 13. Nc3 {[%clk 0:02:55.9]} 13... Bf8 {[%clk 0:02:42]} 14. Bg5 {[%clk
0:02:49.6]} 14... h6 {[%clk 0:02:40.9]} 15. Bh4 {[%clk 0:02:49.8]} 15... Qc7
{[%clk 0:02:38.2]} 16. Rc1 {[%clk 0:02:41.2]} 16... Rac8 {[%clk 0:02:36.8]} 17.
Bg3 {[%clk 0:02:38.2]} 17... Qb8 {[%clk 0:02:33.9]} 18. b4 {[%clk 0:02:34.6]}
18... a6 {[%clk 0:02:28.4]} 19. c5 {[%clk 0:02:25.2]} 19... Nh5 {[%clk
0:02:27.4]} 20. Bb1 {[%clk 0:02:00.5]} 20... Nxg3 {[%clk 0:02:15]} 21. hxg3
{[%clk 0:02:01.4]} 21... bxc5 {[%clk 0:02:07.9]} 22. dxc5 {[%clk 0:02:02.3]}
22... Red8 {[%clk 0:02:07.7]} 23. cxd6 {[%clk 0:01:59.7]} 23... Bxd6 {[%clk
0:02:06.8]} 24. Be4 {[%clk 0:01:50.7]} 24... Nf6 {[%clk 0:01:53.6]} 25. Bxb7
{[%clk 0:01:50.4]} 25... Qxb7 {[%clk 0:01:53.7]} 26. Qe2 {[%clk 0:01:45.9]}
26... Bb8 {[%clk 0:01:52.3]} 27. Ne4 {[%clk 0:01:32.4]} 27... Nxe4 {[%clk
0:01:27.1]} 28. Rxc8 {[%clk 0:01:32.1]} 28... Qxc8 {[%clk 0:01:26.8]} 29. Qxe4
{[%clk 0:01:30.2]} 29... Ba7 {[%clk 0:01:23.5]} 30. Qe2 {[%clk 0:01:23.4]} 30...
Rd7 {[%clk 0:00:50.6]} 31. Ne5 {[%clk 0:00:49.8]} 31... Rc7 {[%clk 0:00:50.6]}
32. Rd1 {[%clk 0:00:39.1]} 32... f6 {[%clk 0:00:33]} 33. Nd3 {[%clk 0:00:36.8]}
33... e5 {[%clk 0:00:29.6]} 34. Kh2 {[%clk 0:00:29.6]} 34... Qf5 {[%clk
0:00:25.3]} 35. Rd2 {[%clk 0:00:10.3]} 35... Bd4 {[%clk 0:00:22]} 36. a4 {[%clk
0:00:09.5]} 36... Rc3 {[%clk 0:00:20.3]} 37. b5 {[%clk 0:00:08.7]} 37... axb5
{[%clk 0:00:20.7]} 38. axb5 {[%clk 0:00:09.6]} 38... Kh7 {[%clk 0:00:20.7]} 39.
Nb4 {[%clk 0:00:04.7]} 39... Bxf2 {[%clk 0:00:10.5]} 40. Nd5 {[%clk 0:00:02]}
40... Bxg3+ {[%clk 0:00:10]} 41. Kg1 {[%clk 0:00:02.3]} 41... Rc1+ {[%clk
0:00:10.2]} 42. Rd1 {[%clk 0:00:02.8]} 42... Rxd1+ {[%clk 0:00:09]} 43. Qxd1
{[%clk 0:00:03.7]} 43... Qf2+ {[%clk 0:00:09.1]} 44. Kh1 {[%clk 0:00:03.7]}
44... e4 {[%clk 0:00:08.8]} 45. b6 {[%clk 0:00:03.4]} 45... Qf5 {[%clk
0:00:08.6]} 46. b7 {[%clk 0:00:01.6]} 46... Qg5 {[%clk 0:00:09.1]} 0-1

[Event "*** Titled Tuesday Blitz"]
[Site "Chess.com"]
[Date "2020.12.01"]
[Round "4"]
[White "Gerasimenyuk_Miha"]
[Black "rududuyk"]
[Result "1/2-1/2"]
[WhiteElo "2407"]
[BlackElo "2213"]
[TimeControl "180+1"]
[EndTime "10:39:20 PST"]
[Termination "Game drawn - insufficient material"]

1. e4 {[%clk 0:02:55.6]} 1... e6 {[%clk 0:03:00.2]} 2. g3 {[%clk 0:02:54.7]}
2... d5 {[%clk 0:02:57.3]} 3. exd5 {[%clk 0:02:54.9]} 3... exd5 {[%clk
0:02:56.9]} 4. Bg2 {[%clk 0:02:55.8]} 4... Nf6 {[%clk 0:02:56.4]} 5. Ne2 {[%clk
0:02:56.7]} 5... c5 {[%clk 0:02:53.4]} 6. O-O {[%clk 0:02:56.3]} 6... Nc6 {[%clk
0:02:53.6]} 7. Re1 {[%clk 0:02:56.1]} 7... Be7 {[%clk 0:02:53.6]} 8. d4 {[%clk
0:02:56.6]} 8... O-O {[%clk 0:02:53.7]} 9. dxc5 {[%clk 0:02:56]} 9... Bxc5
{[%clk 0:02:54.6]} 10. Bg5 {[%clk 0:02:55.4]} 10... Bg4 {[%clk 0:02:50.1]} 11.
Be3 {[%clk 0:02:35.7]} 11... Bxe3 {[%clk 0:02:40.7]} 12. fxe3 {[%clk 0:02:31.8]}
12... Re8 {[%clk 0:02:40.8]} 13. Qd3 {[%clk 0:02:27.9]} 13... Qb6 {[%clk
0:02:38.3]} 14. Nf4 {[%clk 0:02:23.1]} 14... Qxb2 {[%clk 0:02:34.3]} 15. Nc3
{[%clk 0:02:23.2]} 15... Nb4 {[%clk 0:02:33.8]} 16. Qd2 {[%clk 0:01:46]} 16...
Rac8 {[%clk 0:02:28.4]} 17. Ncxd5 {[%clk 0:01:31.9]} 17... Nbxd5 {[%clk
0:02:11.4]} 18. Rab1 {[%clk 0:01:21.6]} 18... Qxc2 {[%clk 0:02:04.6]} 19. Qxc2
{[%clk 0:01:18.4]} 19... Rxc2 {[%clk 0:01:59.9]} 20. Nxd5 {[%clk 0:01:18.1]}
20... Nxd5 {[%clk 0:01:55.5]} 21. Bxd5 {[%clk 0:01:19]} 21... b6 {[%clk
0:01:55.5]} 22. Rf1 {[%clk 0:01:10.9]} 22... Be6 {[%clk 0:01:51.5]} 23. Bxe6
{[%clk 0:00:53.1]} 23... Rxe6 {[%clk 0:01:50.5]} 24. Rbd1 {[%clk 0:00:49.3]}
24... f6 {[%clk 0:01:39.1]} 25. Rf2 {[%clk 0:00:32.9]} 25... Rc3 {[%clk
0:01:28.7]} 26. Rd8+ {[%clk 0:00:31.1]} 26... Kf7 {[%clk 0:01:27.9]} 27. Rd7+
{[%clk 0:00:30.9]} 27... Re7 {[%clk 0:01:27.8]} 28. Rxe7+ {[%clk 0:00:31.1]}
28... Kxe7 {[%clk 0:01:28]} 29. Re2 {[%clk 0:00:31.8]} 29... Ke6 {[%clk
0:01:24.2]} 30. Kf2 {[%clk 0:00:32.6]} 30... Ke5 {[%clk 0:01:23.8]} 31. Kf3
{[%clk 0:00:32.9]} 31... Ra3 {[%clk 0:01:23.7]} 32. Rb2 {[%clk 0:00:31.5]} 32...
Kd5 {[%clk 0:01:20.7]} 33. Rd2+ {[%clk 0:00:28.8]} 33... Kc4 {[%clk 0:01:18.9]}
34. h4 {[%clk 0:00:26.9]} 34... b5 {[%clk 0:01:16.4]} 35. h5 {[%clk 0:00:23]}
35... b4 {[%clk 0:01:11]} 36. Ke4 {[%clk 0:00:22.6]} 36... Kc3 {[%clk
0:01:06.5]} 37. Rd7 {[%clk 0:00:21.2]} 37... Rxa2 {[%clk 0:00:52.2]} 38. Rc7+
{[%clk 0:00:18.9]} 38... Kb3 {[%clk 0:00:44.7]} 39. Rxg7 {[%clk 0:00:18.3]}
39... h6 {[%clk 0:00:33.7]} 40. Rg6 {[%clk 0:00:18.3]} 40... Rg2 {[%clk
0:00:24.8]} 41. Rxh6 {[%clk 0:00:17.1]} 41... Rxg3 {[%clk 0:00:24.4]} 42. Rxf6
{[%clk 0:00:17]} 42... Rh3 {[%clk 0:00:23.1]} 43. h6 {[%clk 0:00:17.3]} 43... a5
{[%clk 0:00:22.5]} 44. Kf5 {[%clk 0:00:13.2]} 44... a4 {[%clk 0:00:22.5]} 45.
Kg6 {[%clk 0:00:12.2]} 45... a3 {[%clk 0:00:21.7]} 46. e4 {[%clk 0:00:12]} 46...
a2 {[%clk 0:00:21]} 47. Rf1 {[%clk 0:00:10.3]} 47... Kb2 {[%clk 0:00:20.5]} 48.
Rf2+ {[%clk 0:00:07.3]} 48... Kc3 {[%clk 0:00:20.4]} 49. Rxa2 {[%clk 0:00:06.7]}
49... Kd4 {[%clk 0:00:19.7]} 50. Rb2 {[%clk 0:00:06.4]} 50... b3 {[%clk
0:00:19.4]} 51. h7 {[%clk 0:00:06.2]} 51... Kxe4 {[%clk 0:00:18.1]} 52. Rxb3
{[%clk 0:00:06.4]} 52... Rg3+ {[%clk 0:00:16.4]} 53. Kh6 {[%clk 0:00:06.5]}
53... Rxb3 {[%clk 0:00:15]} 54. h8=Q {[%clk 0:00:06]} 54... Rh3+ {[%clk
0:00:14.7]} 55. Kg7 {[%clk 0:00:06.9]} 55... Rxh8 {[%clk 0:00:14.8]} 56. Kxh8
{[%clk 0:00:07.8]} 1/2-1/2

[Event "*** Titled Tuesday Blitz"]
[Site "Chess.com"]
[Date "2020.12.01"]
[Round "4"]
[White "Shota_Azaladze"]
[Black "tomsishere"]
[Result "1-0"]
[WhiteElo "2634"]
[BlackElo "2419"]
[TimeControl "180+1"]
[EndTime "10:39:21 PST"]
[Termination "Shota_Azaladze won by resignation"]

1. b3 {[%clk 0:03:00.6]} 1... b6 {[%clk 0:01:20.6]} 2. Bb2 {[%clk 0:03:01.4]}
2... Bb7 {[%clk 0:01:21]} 3. Nf3 {[%clk 0:03:00.9]} 3... e6 {[%clk 0:01:21.1]}
4. e3 {[%clk 0:03:00.8]} 4... Nf6 {[%clk 0:01:21.6]} 5. Be2 {[%clk 0:03:01.3]}
5... Be7 {[%clk 0:01:22.2]} 6. O-O {[%clk 0:03:01.7]} 6... O-O {[%clk 0:01:23]}
7. d3 {[%clk 0:03:02]} 7... c5 {[%clk 0:01:23.3]} 8. Nbd2 {[%clk 0:03:02.7]}
8... d5 {[%clk 0:01:23.6]} 9. Ne5 {[%clk 0:03:00.9]} 9... Nbd7 {[%clk
0:01:23.8]} 10. f4 {[%clk 0:02:59.9]} 10... Nxe5 {[%clk 0:01:24]} 11. fxe5
{[%clk 0:02:59.8]} 11... Nd7 {[%clk 0:01:24.5]} 12. Qe1 {[%clk 0:02:59.7]} 12...
f6 {[%clk 0:01:24.8]} 13. exf6 {[%clk 0:02:49.3]} 13... Bxf6 {[%clk 0:01:25.7]}
14. Bxf6 {[%clk 0:02:46.3]} 14... Rxf6 {[%clk 0:01:26.6]} 15. Qg3 {[%clk
0:02:46.1]} 15... e5 {[%clk 0:01:21.7]} 16. Bg4 {[%clk 0:02:39]} 16... Rg6
{[%clk 0:01:21.8]} 17. Qh3 {[%clk 0:02:34.8]} 17... Nf6 {[%clk 0:01:21]} 18. Bf5
{[%clk 0:02:31]} 18... Rh6 {[%clk 0:01:18.9]} 19. Qg3 {[%clk 0:02:29.8]} 19...
Qe7 {[%clk 0:01:18.3]} 20. e4 {[%clk 0:02:28.4]} 20... dxe4 {[%clk 0:01:17]} 21.
dxe4 {[%clk 0:02:27.3]} 21... Rd8 {[%clk 0:01:16.1]} 22. Rad1 {[%clk 0:02:23.1]}
22... Ba6 {[%clk 0:01:08.5]} 23. Rfe1 {[%clk 0:02:17]} 23... Nh5 {[%clk
0:01:07.6]} 24. Qc3 {[%clk 0:02:10.7]} 24... Nf4 {[%clk 0:01:04.2]} 25. Nc4
{[%clk 0:02:07.9]} 25... Rf8 {[%clk 0:01:01.1]} 26. g3 {[%clk 0:01:44.6]} 26...
Ne6 {[%clk 0:00:53]} 27. Qxe5 {[%clk 0:01:42.4]} 27... Qf7 {[%clk 0:00:34.8]}
28. Nd6 {[%clk 0:01:39.7]} 28... Qf6 {[%clk 0:00:30.5]} 29. Qxf6 {[%clk
0:01:38.1]} 29... Rhxf6 {[%clk 0:00:31.4]} 30. Bxe6+ {[%clk 0:01:10.8]} 30...
Rxe6 {[%clk 0:00:32.3]} 31. Rd2 {[%clk 0:01:10.2]} 31... Rfe8 {[%clk 0:00:31.4]}
32. Red1 {[%clk 0:01:09.3]} 32... Rd8 {[%clk 0:00:28.9]} 33. a4 {[%clk
0:01:08.3]} 33... Kf8 {[%clk 0:00:24.4]} 34. Kf2 {[%clk 0:01:08.1]} 34... c4
{[%clk 0:00:20.5]} 35. b4 {[%clk 0:01:04.8]} 35... Rf6+ {[%clk 0:00:17.7]} 36.
Ke3 {[%clk 0:01:04.3]} 36... c3 {[%clk 0:00:16.5]} 37. Rd4 {[%clk 0:01:03.3]}
37... Rd7 {[%clk 0:00:14.4]} 38. b5 {[%clk 0:01:02.6]} 38... Bb7 {[%clk
0:00:14.4]} 39. Nxb7 {[%clk 0:01:00.4]} 39... Rxb7 {[%clk 0:00:15]} 40. Rd7
{[%clk 0:01:00.3]} 40... Rf7 {[%clk 0:00:14.4]} 41. Rxb7 {[%clk 0:00:59]} 41...
Rxb7 {[%clk 0:00:15.3]} 42. Rd8+ {[%clk 0:00:57.8]} 42... Ke7 {[%clk 0:00:14.7]}
43. Rh8 {[%clk 0:00:57.6]} 43... h6 {[%clk 0:00:14.2]} 44. Kd4 {[%clk
0:00:57.5]} 44... Kd6 {[%clk 0:00:14]} 45. Rd8+ {[%clk 0:00:55.6]} 45... Ke6
{[%clk 0:00:14]} 46. Rc8 {[%clk 0:00:55.3]} 46... Re7 {[%clk 0:00:12.6]} 47.
Rc6+ {[%clk 0:00:53.3]} 47... Kf7 {[%clk 0:00:11.9]} 48. Rxc3 {[%clk 0:00:53.8]}
48... Rd7+ {[%clk 0:00:11.7]} 49. Ke3 {[%clk 0:00:53.4]} 49... Ke6 {[%clk
0:00:11.7]} 50. Rc8 {[%clk 0:00:46.4]} 50... Ke5 {[%clk 0:00:12.6]} 51. c4
{[%clk 0:00:44.9]} 51... g5 {[%clk 0:00:12.1]} 52. c5 {[%clk 0:00:44]} 52...
bxc5 {[%clk 0:00:13]} 53. Rxc5+ {[%clk 0:00:43.4]} 53... Ke6 {[%clk 0:00:11.9]}
54. Rc6+ {[%clk 0:00:43]} 54... Kf7 {[%clk 0:00:11.4]} 55. Rxh6 {[%clk
0:00:42.7]} 55... Kg7 {[%clk 0:00:10.3]} 56. Ra6 {[%clk 0:00:42.1]} 56... g4
{[%clk 0:00:09.5]} 57. Kf4 {[%clk 0:00:41.5]} 57... Rd2 {[%clk 0:00:09.3]} 58.
Kxg4 {[%clk 0:00:40.8]} 58... Rxh2 {[%clk 0:00:08.5]} 59. Rxa7+ {[%clk
0:00:40.4]} 59... Kf6 {[%clk 0:00:09.4]} 60. b6 {[%clk 0:00:40.2]} 60... Rb2
{[%clk 0:00:09.1]} 61. a5 {[%clk 0:00:39.1]} 61... Ke5 {[%clk 0:00:10]} 62. b7
{[%clk 0:00:38.4]} 62... Kxe4 {[%clk 0:00:10.9]} 63. a6 {[%clk 0:00:38.1]} 63...
Ke5 {[%clk 0:00:10]} 64. Ra8 {[%clk 0:00:37.4]} 64... Rb4+ {[%clk 0:00:10.9]}
65. Kh3 {[%clk 0:00:37.2]} 65... Kf5 {[%clk 0:00:09.5]} 1-0